fUSD/lending_fUSD_20250108
["ID","MTS","AMOUNT","RATE_DAILY","PERIOD"]
[348195628,1736380239997,-500.0,9.999e-05,2]
[348195630,1736380240006,-500.0,9.999e-05,2]
[348195632,1736380240016,-500.0,9.999e-05,2]
[348195634,1736380240026,-500.0,9.999e-05,2]
[348195636,1736380240035,-465.09974956,9.999e-05,2]
[348195638,1736380240044,-550.29,9.999e-05,2]
[348195640,1736380240054,-500.0,9.999e-05,2]
[348195642,1736380240063,-500.0,9.999e-05,2]
[348195644,1736380240072,-603.59,9.999e-05,2]
[348195646,1736380240081,-994.57,9.999e-05,2]
[348195648,1736380240090,-758.15,9.999e-05,2]
[348195650,1736380240099,-500.0,9.999e-05,2]
[348195652,1736380240109,-500.0,9.999e-05,2]
[348195654,1736380240119,-638.47,9.999e-05,2]
[348195656,1736380240128,-500.0,9.999e-05,2]
[348195658,1736380240137,-500.0,9.999e-05,2]
[348195660,1736380240146,-500.0,9.999e-05,2]
[348195662,1736380240155,-1861.14,9.999e-05,2]
[348195664,1736380240164,-157.96,9.999e-05,2]
[348195666,1736380240174,-500.0,9.999e-05,2]
[348195668,1736380240183,-500.0,9.999e-05,2]
[348195670,1736380240193,-603.79912995,9.999e-05,2]
[348195672,1736380240202,-500.0,9.999e-05,2]
[348195674,1736380240211,-500.0,9.999e-05,2]
[348195676,1736380240220,-500.0,9.999e-05,2]
[348195678,1736380240230,-691.4,9.999e-05,2]
[348195680,1736380240240,-513.94,9.999e-05,2]
[348195682,1736380240249,-558.9,9.999e-05,2]
[348195683,1736380240258,-500.0,9.999e-05,2]
[348195684,1736380240271,-695.7,9.999e-05,2]
[348195685,1736380240280,-694.35,9.999e-05,2]
[348195686,1736380240290,-500.0,9.999e-05,2]
[348195687,1736380240300,-500.0,9.999e-05,2]
[348195688,1736380240310,-500.0,9.999e-05,2]
[348195689,1736380240320,-696.468158,9.999e-05,2]
[348195690,1736380240330,-500.0,9.999e-05,2]
[348195691,1736380240340,-500.0,9.999e-05,2]
[348195693,1736380240349,-663.628485,9.999e-05,2]
[348195695,1736380240360,-500.0,9.999e-05,2]
[348195697,1736380240369,-2034.25,9.999e-05,2]
[348195699,1736380240379,-612.96,9.999e-05,2]
[348195701,1736380240388,-500.0,9.999e-05,2]
[348195703,1736380240398,-500.0,9.999e-05,2]
[348195705,1736380240407,-500.0,9.999e-05,2]
[348195707,1736380240416,-500.0,9.999e-05,2]
[348195709,1736380240426,-591.77,9.999e-05,2]
[348195711,1736380240435,-440.57,9.999e-05,2]
[348195713,1736380240444,-622.36,9.999e-05,2]
[348195715,1736380240454,-500.0,9.999e-05,2]
[348195717,1736380240463,-500.0,9.999e-05,2]
[348195719,1736380240473,-683.88,9.999e-05,2]
[348195721,1736380240482,-500.0,9.999e-05,2]
[348195723,1736380240491,-500.0,9.999e-05,2]
[348195725,1736380240501,-500.0,9.999e-05,2]
[348195726,1736380240511,-3170.77,9.999e-05,2]
[348195727,1736380240523,-500.0,9.999e-05,2]
[348195728,1736380240533,-500.0,9.999e-05,2]
[348195729,1736380240542,-566.2,9.999e-05,2]
[348195730,1736380240551,-2454.34,9.999e-05,2]
[348195731,1736380240561,-500.0,9.999e-05,2]
[348195733,1736380240570,-2401.55,9.999e-05,2]
[348195735,1736380240579,-500.0,9.999e-05,2]
[348195736,1736380240589,-500.0,9.999e-05,2]
[348195738,1736380240598,-500.0,9.999e-05,2]
[348195740,1736380240607,-500.0,9.999e-05,2]
[348195742,1736380240616,-2856.78,9.999e-05,2]
[348195744,1736380240626,-607.31,9.999e-05,2]
[348195746,1736380240635,-747.33,9.999e-05,2]
[348195748,1736380240644,-500.0,9.999e-05,2]
[348195750,1736380240654,-500.0,9.999e-05,2]
[348195752,1736380240663,-500.0,9.999e-05,2]
[348195754,1736380240673,-500.0,9.999e-05,2]
[348195756,1736380240683,-500.0,9.999e-05,2]
[348195758,1736380240692,-500.0,9.999e-05,2]
[348195760,1736380240702,-972.52,9.999e-05,2]
[348195762,1736380240711,-1217.39,9.999e-05,2]
[348195764,1736380240720,-500.0,9.999e-05,2]
[348195766,1736380240729,-562.79,9.999e-05,2]
[348195768,1736380240738,-500.0,9.999e-05,2]
[348195770,1736380240748,-500.0,9.999e-05,2]
[348195772,1736380240757,-500.0,9.999e-05,2]
[348195774,1736380240768,-500.0,9.999e-05,2]
[348195776,1736380240778,-501.12,9.999e-05,2]
[348195778,1736380240787,-500.0,9.999e-05,2]
[348195779,1736380240796,-1506.73,9.999e-05,2]
[348195780,1736380240805,-2049.39,9.999e-05,2]
[348195781,1736380240814,-500.0,9.999e-05,2]
[348195782,1736380240824,-500.0,9.999e-05,2]
[348195784,1736380240833,-500.0,9.999e-05,2]
[348195786,1736380240842,-500.0,9.999e-05,2]
[348195788,1736380240852,-500.0,9.999e-05,2]
[348195790,1736380240861,-500.0,9.999e-05,2]
[348195792,1736380240872,-1436.79,9.999e-05,2]
[348195793,1736380240883,-1310.15,9.999e-05,2]
[348195794,1736380240893,-662.34,9.999e-05,2]
[348195795,1736380240902,-500.0,9.999e-05,2]
[348195796,1736380240911,-500.0,9.999e-05,2]
[348195797,1736380240922,-500.0,9.999e-05,2]
[348195798,1736380240932,-623.89,9.999e-05,2]
[348195799,1736380240941,-727.13,9.999e-05,2]
[348195800,1736380240953,-2766.9,9.999e-05,2]
[348195801,1736380240963,-500.0,9.999e-05,2]
[348195802,1736380240972,-500.0,9.999e-05,2]
[348195803,1736380240982,-966.28,9.999e-05,2]
[348195804,1736380240992,-500.0,9.999e-05,2]
[348195805,1736380241002,-38000.6284138,9.999e-05,2]
[348195806,1736380241012,-1789.04,9.999e-05,2]
[348195807,1736380241022,-500.0,9.999e-05,2]
[348195808,1736380241032,-3353.62,9.999e-05,2]
[348195809,1736380241041,-500.0,9.999e-05,2]
[348195810,1736380241051,-357.15890295,9.999e-05,2]
[348195811,1736380241060,-581.07257008,9.999e-05,2]
[348195812,1736380241070,-500.0,9.999e-05,2]
[348195813,1736380241080,-950.0,0.0001,2]
[348195814,1736380241090,-8787282.15722154,0.0001,2]
[348195815,1736380241281,-2208195.91093453,0.0001,2]
[348195816,1736380241291,-286586.32,0.0001,2]
[348195817,1736380241302,-2000.0,0.0001,2]
[348195818,1736380241312,-200.0,0.0001,2]
[348195819,1736380241321,-300.0,0.0001,2]
[348195820,1736380241331,-300.0,0.0001,2]
[348195821,1736380241341,-214.73506021,0.0001,2]
[348195822,1736380241351,-166.39605659,0.0001,2]
[348195823,1736380241360,-1000.0,0.0001,2]
[348195824,1736380241370,-3000.0,0.0001,2]
[348195825,1736380241380,-348.57011204,0.0001,2]
[348195826,1736380241390,-348.57011188,0.0001,2]
[348195827,1736380241400,-348.57011188,0.0001,2]
[348195828,1736380241409,-348.57011188,0.0001,2]
[348195829,1736380241419,-348.57011188,0.0001,2]
[348195830,1736380241428,-348.57011188,0.0001,2]
[348195831,1736380241438,-348.57011188,0.0001,2]
[348195832,1736380241447,-348.57011188,0.0001,2]
[348195833,1736380241457,-348.57011188,0.0001,2]
[348195834,1736380241466,-348.57011188,0.0001,2]
[348195835,1736380241476,-348.57011188,0.0001,2]
[348195836,1736380241486,-348.57011188,0.0001,2]
[348195837,1736380241495,-348.57011188,0.0001,2]
[348195838,1736380241505,-348.57011188,0.0001,2]
[348195839,1736380241514,-348.57011188,0.0001,2]
[348195840,1736380241524,-348.57011188,0.0001,2]
[348195841,1736380241534,-348.57011188,0.0001,2]
[348195842,1736380241543,-348.57011188,0.0001,2]
[348195843,1736380241553,-348.57011188,0.0001,2]
[348195844,1736380241562,-348.57011188,0.0001,2]
[348195845,1736380241572,-1896.86119808,0.0001,2]
[348195846,1736380241581,-202.13626552,0.0001,2]
[348195847,1736380241591,-202.13626542,0.00010015,2]
[348195848,1736380241600,-500.0,0.00010027,2]
[348195849,1736380241610,-489.4,0.00010037,2]
[348195850,1736380241619,-401.05,0.00010054,2]
[348195851,1736380241628,-654.70216282,0.000101,2]
[348195852,1736380241638,-200.0,0.000101,2]
[348195853,1736380241647,-1000.0,0.000101,2]
[348195854,1736380241657,-202.13626542,0.00010131,2]
[348195855,1736380241666,-15443.16965472,0.00010135,4]
[348195856,1736380241676,-500.0,0.00010136,2]
[348195857,1736380241685,-159.72,0.00010137,2]
[348195858,1736380241695,-154.22,0.00010137,2]
[348195859,1736380241704,-717.51,0.00010137,2]
[348195860,1736380241713,-1004.0,0.000102,2]
[348195861,1736380241723,-202.13626542,0.00010246,2]
[348195862,1736380241733,-500.0,0.0001027,2]
[348195863,1736380241742,-500.0,0.0001027,2]
[348195864,1736380241751,-500.0,0.0001027,2]
[348195865,1736380241761,-500.0,0.0001027,2]
[348195866,1736380241771,-500.0,0.0001027,2]
[348195867,1736380241781,-500.0,0.0001027,2]
[348195868,1736380241791,-1016.23,0.0001027,2]
[348195869,1736380241800,-500.0,0.0001027,2]
[348195870,1736380241810,-500.0,0.0001027,2]
[348195871,1736380241819,-500.0,0.0001027,2]
[348195872,1736380241828,-918.8,0.0001027,2]
[348195873,1736380241838,-500.0,0.0001027,2]
[348195874,1736380241847,-500.0,0.0001027,2]
[348195875,1736380241857,-500.0,0.0001027,2]
[348195876,1736380241866,-500.0,0.0001027,2]
[348195877,1736380241878,-500.0,0.0001027,2]
[348195878,1736380241887,-1408.43,0.0001027,2]
[348195879,1736380241897,-500.0,0.0001027,2]
[348195880,1736380241906,-500.0,0.0001027,2]
[348195881,1736380241917,-2059.75,0.0001027,2]
[348195882,1736380241927,-630.7878249,0.0001027,2]
[348195883,1736380241936,-500.0,0.0001027,2]
[348195884,1736380241946,-500.0,0.0001027,2]
[348195885,1736380241958,-1166.29,0.0001027,2]
[348195886,1736380241968,-500.0,0.0001027,2]
[348195887,1736380241977,-500.0,0.0001027,2]
[348195888,1736380241987,-500.0,0.0001027,2]
[348195889,1736380241996,-812.72,0.0001027,2]
[348195890,1736380242006,-500.0,0.0001027,2]
[348195891,1736380242016,-2611.99,0.0001027,2]
[348195892,1736380242025,-500.0,0.0001027,2]
[348195893,1736380242035,-500.0,0.0001027,2]
[348195894,1736380242044,-500.0,0.0001027,2]
[348195895,1736380242054,-500.0,0.0001027,2]
[348195896,1736380242063,-500.0,0.0001027,7]
[348195897,1736380242072,-629.55,0.0001027,2]
[348195898,1736380242081,-500.0,0.0001027,2]
[348195899,1736380242091,-631.97854926,0.0001027,2]
[348195900,1736380242100,-500.0,0.0001027,2]
[348195901,1736380242109,-500.0,0.0001027,2]
[348195902,1736380242119,-500.0,0.0001027,2]
[348195903,1736380242128,-500.0,0.0001027,2]
[348195904,1736380242137,-500.0,0.0001027,2]
[348195905,1736380242147,-500.0,0.0001027,2]
[348195906,1736380242156,-500.0,0.0001027,2]
[348195907,1736380242165,-500.0,0.0001027,2]
[348195908,1736380242175,-604.03,0.0001027,2]
[348195909,1736380242184,-575.34,0.0001027,2]
[348195910,1736380242194,-524.12,0.0001027,2]
[348195911,1736380242204,-482.09018902,0.0001027,2]
[348195912,1736380242215,-500.0,0.0001027,2]
[348195913,1736380242226,-500.0,0.0001027,2]
[348195914,1736380242237,-500.0,0.0001027,2]
[348195915,1736380242246,-500.0,0.0001027,2]
[348195916,1736380242256,-1296.24,0.0001027,2]
[348195917,1736380242265,-500.0,0.0001027,2]
[348195918,1736380242275,-719.45,0.0001027,2]
[348195919,1736380242284,-500.0,0.0001027,2]
[348195920,1736380242293,-500.0,0.0001027,2]
[348195921,1736380242303,-500.0,0.0001027,2]
[348195922,1736380242312,-767.85,0.0001027,2]
[348195923,1736380242322,-500.0,0.0001027,2]
[348195924,1736380242332,-708.24,0.0001027,2]
[348195925,1736380242342,-374.01011871,0.0001027,2]
[348195926,1736380242351,-613.5,0.0001027,2]
[348195927,1736380242361,-704.59,0.0001027,2]
[348195928,1736380242370,-500.0,0.0001027,2]
[348195929,1736380242379,-500.0,0.0001027,2]
[348195930,1736380242389,-500.0,0.0001027,2]
[348195931,1736380242398,-1341.53,0.0001027,2]
[348195932,1736380242408,-500.0,0.0001027,2]
[348195934,1736380242418,-500.0,0.0001027,2]
[348195935,1736380242428,-500.0,0.0001027,2]
[348195937,1736380242437,-500.0,0.0001027,2]
[348195939,1736380242447,-500.0,0.0001027,2]
[348195941,1736380242456,-500.0,0.0001027,2]
[348195942,1736380242466,-500.0,0.0001027,2]
[348195943,1736380242475,-500.0,0.0001027,2]
[348195944,1736380242485,-500.0,0.0001027,2]
[348195946,1736380242495,-595.73,0.0001027,2]
[348195948,1736380242504,-500.0,0.0001027,2]
[348195950,1736380242513,-500.0,0.0001027,2]
[348195951,1736380242523,-535.92,0.0001027,2]
[348195952,1736380242532,-500.0,0.0001027,2]
[348195953,1736380242542,-1054.85,0.0001027,2]
[348195954,1736380242551,-500.0,0.0001027,2]
[348195955,1736380242561,-500.0,0.0001027,2]
[348195956,1736380242570,-500.0,0.0001027,2]
[348195957,1736380242579,-1282.39,0.0001027,2]
[348195958,1736380242589,-500.0,0.0001027,2]
[348195959,1736380242598,-500.0,0.0001027,2]
[348195960,1736380242607,-500.0,0.0001027,2]
[348195961,1736380242616,-500.0,0.0001027,2]
[348195962,1736380242625,-500.0,0.0001027,2]
[348195963,1736380242635,-870.92,0.0001027,2]
[348195964,1736380242644,-1576.75,0.0001027,2]
[348195965,1736380242653,-500.0,0.0001027,2]
[348195966,1736380242663,-500.0,0.0001027,2]
[348195967,1736380242672,-500.0,0.0001027,2]
[348195968,1736380242681,-500.0,0.0001027,2]
[348195969,1736380242690,-500.0,0.0001027,2]
[348195970,1736380242699,-2106.6,0.0001027,2]
[348195971,1736380242708,-500.0,0.0001027,2]
[348195972,1736380242718,-512.37112356,0.0001027,2]
[348195973,1736380242727,-500.0,0.0001027,2]
[348195974,1736380242736,-500.0,0.0001027,2]
[348195975,1736380242745,-1176.75,0.0001027,2]
[348195976,1736380242755,-500.0,0.0001027,2]
[348195977,1736380242764,-571.01826654,0.0001027,2]
[348195978,1736380242773,-4249.06,0.0001027,2]
[348195979,1736380242782,-500.0,0.0001027,2]
[348195980,1736380242791,-688.04,0.0001027,2]
[348195981,1736380242800,-500.0,0.0001027,2]
[348195982,1736380242810,-1348.0,0.0001027,2]
[348195983,1736380242819,-589.77,0.0001027,2]
[348195984,1736380242829,-500.0,0.0001027,2]
[348195985,1736380242838,-598.96,0.0001027,2]
[348195986,1736380242847,-500.0,0.0001027,2]
[348195987,1736380242857,-500.0,0.0001027,2]
[348195988,1736380242867,-500.0,0.0001027,2]
[348195989,1736380242877,-545.09,0.0001027,2]
[348195990,1736380242887,-500.0,0.0001027,2]
[348195991,1736380242896,-1270.96,0.0001027,2]
[348195992,1736380242905,-500.0,0.0001027,2]
[348195993,1736380242915,-2854.22,0.0001027,2]
[348195994,1736380242927,-582.02,0.0001027,2]
[348195995,1736380242938,-500.0,0.0001027,2]
[348195996,1736380242949,-2630.37,0.0001027,2]
[348195997,1736380242961,-704.17,0.0001027,2]
[348195998,1736380242971,-566.64,0.0001027,2]
[348195999,1736380242981,-2074.7,0.0001027,2]
[348196000,1736380242990,-1364.88,0.0001027,2]
[348196001,1736380242999,-1094.17,0.00010271,2]
[348196002,1736380243008,-935.74,0.00010271,2]
[348196003,1736380243018,-1025.17,0.00010271,2]
[348196004,1736380243027,-500.0,0.00010271,2]
[348196005,1736380243037,-1000.0,0.00010271,2]
[348196006,1736380243046,-500.0,0.00010271,2]
[348196007,1736380243056,-500.0,0.00010271,2]
[348196008,1736380243065,-2127.12,0.00010271,2]
[348196009,1736380243075,-1484.99,0.00010272,2]
[348196010,1736380243085,-500.0,0.00010272,2]
[348196011,1736380243094,-500.0,0.00010272,2]
[348196012,1736380243104,-1377.57,0.00010272,2]
[348196013,1736380243113,-3553.99,0.00010272,2]
[348196014,1736380243123,-664.96,0.00010272,2]
[348196015,1736380243132,-629.52225685,0.00010272,2]
[348196016,1736380243141,-500.0,0.00010272,2]
[348196017,1736380243151,-580.46,0.00010272,2]
[348196018,1736380243161,-500.0,0.00010272,2]
[348196019,1736380243172,-2661.92,0.00010272,2]
[348196020,1736380243182,-1618.91,0.00010272,2]
[348196021,1736380243191,-500.0,0.00010272,2]
[348196022,1736380243201,-500.0,0.00010272,2]
[348196023,1736380243210,-500.0,0.00010272,2]
[348196024,1736380243219,-2888.88,0.00010272,2]
[348196025,1736380243228,-2010.73,0.00010272,2]
[348196026,1736380243238,-764.61,0.00010272,2]
[348196028,1736380243247,-2319.16,0.00010272,2]
[348196030,1736380243257,-500.0,0.00010272,2]
[348196032,1736380243267,-500.0,0.00010272,2]
[348196033,1736380243276,-1201.15,0.00010272,2]
[348196034,1736380243286,-1597.86,0.00010272,2]
[348196035,1736380243296,-619.29,0.00010272,2]
[348196036,1736380243306,-739.47,0.00010272,2]
[348196037,1736380243315,-500.0,0.00010272,2]
[348196038,1736380243325,-512.06,0.00010272,2]
[348196039,1736380243334,-2574.8,0.00010272,2]
[348196040,1736380243343,-949.49,0.00010272,2]
[348196041,1736380243353,-500.0,0.00010272,2]
[348196042,1736380243364,-756.87,0.00010272,2]
[348196043,1736380243373,-500.0,0.00010272,2]
[348196044,1736380243383,-500.0,0.00010272,2]
[348196045,1736380243392,-1632.21,0.00010272,2]
[348196046,1736380243401,-906.77,0.00010272,2]
[348196047,1736380243411,-590.05,0.00010272,2]
[348196048,1736380243420,-570.29,0.00010272,2]
[348196049,1736380243429,-500.0,0.00010272,2]
[348196050,1736380243439,-500.0,0.00010272,2]
[348196051,1736380243449,-500.0,0.00010272,2]
[348196052,1736380243459,-500.0,0.00010272,2]
[348196053,1736380243468,-1456.8,0.00010272,2]
[348196054,1736380243478,-678.71,0.00010272,2]
[348196055,1736380243493,-500.0,0.00010273,2]
[348196056,1736380243503,-500.0,0.00010273,2]
[348196057,1736380243512,-500.0,0.00010273,2]
[348196058,1736380243522,-500.0,0.00010273,2]
[348196059,1736380243532,-500.0,0.00010273,2]
[348196060,1736380243542,-500.0,0.00010273,2]
[348196061,1736380243551,-500.0,0.00010273,2]
[348196062,1736380243561,-500.0,0.00010273,2]
[348196063,1736380243570,-500.0,0.00010273,2]
[348196064,1736380243579,-500.0,0.00010273,2]
[348196066,1736380243589,-639.76,0.00010273,2]
[348196073,1736380243647,-500.0,0.00010273,2]
[348196075,1736380243657,-500.0,0.00010273,2]
[348196077,1736380243666,-500.0,0.00010273,2]
[348196079,1736380243678,-500.0,0.00010273,2]
[348196082,1736380243689,-500.0,0.00010273,2]
[348196084,1736380243698,-500.0,0.00010273,2]
[348196085,1736380243707,-500.0,0.00010273,2]
[348196087,1736380243716,-500.0,0.00010273,2]
[348196089,1736380243725,-443.74435729,0.00010273,2]
[348196091,1736380243735,-500.0,0.00010273,2]
[348196094,1736380243744,-383.01,0.00010273,2]
[348196095,1736380243753,-603.59,0.00010273,2]
[348196097,1736380243763,-994.57,0.00010273,2]
[348196099,1736380243772,-758.15,0.00010273,2]
[348196101,1736380243782,-500.0,0.00010273,2]
[348196103,1736380243791,-500.0,0.00010273,2]
[348196105,1736380243800,-638.47,0.00010273,2]
[348196107,1736380243809,-500.0,0.00010273,2]
[348196109,1736380243818,-500.0,0.00010273,2]
[348196111,1736380243828,-500.0,0.00010273,2]
[348196113,1736380243838,-1861.14,0.00010273,2]
[348196115,1736380243847,-500.0,0.00010273,2]
[348196117,1736380243856,-500.0,0.00010273,2]
[348196119,1736380243865,-500.0,0.00010273,2]
[348196121,1736380243875,-245.35841347,0.00010273,2]
[348196123,1736380243886,-500.0,0.00010273,2]
[348196125,1736380243896,-691.4,0.00010273,2]
[348196127,1736380243904,-513.94,0.00010273,2]
[348196129,1736380243914,-558.9,0.00010273,2]
[348196131,1736380243925,-500.0,0.00010273,2]
[348196133,1736380243934,-695.7,0.00010273,2]
[348196135,1736380243944,-694.35,0.00010273,2]
[348196137,1736380243955,-500.0,0.00010273,2]
[348196139,1736380243965,-500.0,0.00010273,2]
[348196141,1736380243974,-500.0,0.00010273,2]
[348196143,1736380243983,-696.468158,0.00010273,2]
[348196145,1736380243991,-500.0,0.00010273,2]
[348196147,1736380244001,-500.0,0.00010273,2]
[348196149,1736380244010,-663.628485,0.00010273,2]
[348196151,1736380244020,-500.0,0.00010273,2]
[348196153,1736380244029,-2034.25,0.00010273,2]
[348196155,1736380244038,-612.96,0.00010273,2]
[348196157,1736380244047,-500.0,0.00010273,2]
[348196159,1736380244056,-500.0,0.00010273,2]
[348196161,1736380244066,-500.0,0.00010273,2]
[348196163,1736380244075,-500.0,0.00010273,2]
[348196165,1736380244085,-591.77,0.00010273,2]
[348196167,1736380244094,-622.36,0.00010273,2]
[348196169,1736380244103,-500.0,0.00010273,2]
[348196171,1736380244112,-500.0,0.00010273,2]
[348196173,1736380244121,-683.88,0.00010273,2]
[348196175,1736380244130,-500.0,0.00010273,2]
[348196177,1736380244139,-500.0,0.00010273,2]
[348196179,1736380244148,-3170.77,0.00010273,2]
[348196180,1736380244157,-500.0,0.00010273,2]
[348196182,1736380244166,-500.0,0.00010273,2]
[348196184,1736380244176,-566.2,0.00010273,2]
[348196186,1736380244185,-2454.34,0.00010273,2]
[348196188,1736380244194,-500.0,0.00010273,2]
[348196190,1736380244204,-2401.55,0.00010273,2]
[348196192,1736380244213,-500.0,0.00010273,2]
[348196194,1736380244223,-500.0,0.00010273,2]
[348196196,1736380244231,-500.0,0.00010273,2]
[348196198,1736380244240,-500.0,0.00010273,2]
[348196200,1736380244249,-2856.78,0.00010273,2]
[348196202,1736380244259,-607.31,0.00010273,2]
[348196204,1736380244269,-747.33,0.00010273,2]
[348196206,1736380244278,-500.0,0.00010273,2]
[348196208,1736380244287,-500.0,0.00010273,2]
[348196210,1736380244296,-500.0,0.00010273,2]
[348196212,1736380244305,-500.0,0.00010273,2]
[348196214,1736380244314,-500.0,0.00010273,2]
[348196216,1736380244324,-500.0,0.00010273,2]
[348196218,1736380244333,-972.52,0.00010273,2]
[348196220,1736380244342,-1217.39,0.00010273,2]
[348196222,1736380244351,-500.0,0.00010273,2]
[348196224,1736380244360,-562.79,0.00010273,2]
[348196226,1736380244369,-500.0,0.00010273,2]
[348196228,1736380244378,-500.0,0.00010273,2]
[348196230,1736380244387,-500.0,0.00010273,2]
[348196232,1736380244397,-500.0,0.00010273,2]
[348196234,1736380244406,-501.12,0.00010273,2]
[348196236,1736380244415,-500.0,0.00010273,2]
[348196237,1736380244424,-1506.73,0.00010273,2]
[348196240,1736380244434,-2049.39,0.00010273,2]
[348196242,1736380244447,-598.80358881,0.00010273,2]
[348196244,1736380244457,-500.0,0.00010273,2]
[348196246,1736380244466,-500.0,0.00010273,2]
[348196248,1736380244475,-500.0,0.00010273,2]
[348196250,1736380244485,-500.0,0.00010273,2]
[348196252,1736380244494,-1436.79,0.00010273,2]
[348196254,1736380244504,-1310.15,0.00010273,2]
[348196256,1736380244513,-662.34,0.00010273,2]
[348196258,1736380244523,-500.0,0.00010273,2]
[348196260,1736380244532,-500.0,0.00010273,2]
[348196262,1736380244541,-727.13,0.00010273,2]
[348196264,1736380244550,-2766.9,0.00010273,2]
[348196266,1736380244559,-500.0,0.00010273,2]
[348196268,1736380244568,-500.0,0.00010273,2]
[348196270,1736380244578,-966.28,0.00010273,2]
[348196272,1736380244587,-500.0,0.00010273,2]
[348196274,1736380244596,-1789.04,0.00010273,2]
[348196276,1736380244605,-500.0,0.00010273,2]
[348196278,1736380244614,-3353.62,0.00010273,2]
[348196279,1736380244625,-366.68,0.00010333,2]
[348196280,1736380244635,-1000.0,0.00010352,2]
[348196281,1736380244645,-202.13626542,0.00010362,2]
[348196282,1736380244658,-428.31281036,0.00010382,2]
[348196283,1736380244667,-500.0,0.0001041,2]
[348196284,1736380244679,-964.33,0.00010429,2]
[348196285,1736380244689,-202.13626542,0.00010477,2]
[348196286,1736380244699,-1297.0009907,0.000105,2]
[348196287,1736380244708,-151.5,0.000105,2]
[348196288,1736380244718,-428.31281036,0.00010505,2]
[348196289,1736380244727,-500.0,0.00010521,2]
[348196290,1736380244737,-500.0,0.00010544,2]
[348196291,1736380244747,-500.0,0.00010544,2]
[348196292,1736380244756,-500.0,0.00010544,2]
[348196293,1736380244767,-500.0,0.00010544,2]
[348196294,1736380244778,-500.0,0.00010544,2]
[348196295,1736380244788,-1016.23,0.00010544,2]
[348196296,1736380244798,-500.0,0.00010544,2]
[348196297,1736380244807,-500.0,0.00010544,2]
[348196298,1736380244818,-500.0,0.00010544,2]
[348196299,1736380244828,-918.8,0.00010544,2]
[348196300,1736380244838,-500.0,0.00010544,2]
[348196301,1736380244847,-500.0,0.00010544,2]
[348196302,1736380244857,-500.0,0.00010544,2]
[348196303,1736380244866,-500.0,0.00010544,2]
[348196304,1736380244878,-500.0,0.00010544,2]
[348196305,1736380244888,-1408.43,0.00010544,2]
[348196306,1736380244897,-500.0,0.00010544,2]
[348196307,1736380244907,-500.0,0.00010544,2]
[348196308,1736380244917,-2059.75,0.00010544,2]
[348196309,1736380244927,-500.0,0.00010544,2]
[348196310,1736380244936,-500.0,0.00010544,2]
[348196311,1736380244946,-1166.29,0.00010544,2]
[348196312,1736380244957,-500.0,0.00010544,2]
[348196313,1736380244967,-500.0,0.00010544,2]
[348196314,1736380244976,-500.0,0.00010544,2]
[348196315,1736380244985,-812.72,0.00010544,2]
[348196316,1736380244995,-500.0,0.00010544,2]
[348196317,1736380245004,-2611.99,0.00010544,2]
[348196318,1736380245014,-500.0,0.00010544,2]